bitfinex/quotes_ETHUSD_20241106
["timestamp","ask_amount","ask_price","bid_price","bid_amount"]
[1730852410885,13.19192,2441.5,2441.0,0.8214]
[1730852411039,4.09626,2441.3,2441.0,0.8114]
[1730852411240,4.09651,2441.1,2441.0,0.8114]
[1730852411461,4.09651,2441.1,2440.8,0.8214]
[1730852411688,4.09677,2441.0,2440.6,0.00874132]
[1730852411873,9.915787,2441.1,2440.6,0.00874132]
[1730852411874,9.09651,2441.1,2440.6,0.00874132]
[1730852412248,4.09694,2440.9,2440.6,0.00874132]
[1730852412744,4.09704,2440.8,2440.5,0.8114]
[1730852412946,4.09694,2440.9,2440.5,0.8114]
[1730852413491,4.09694,2440.9,2440.5,1.30418913]
[1730852413644,4.09669,2441.0,2440.6,0.00874132]
[1730852414269,9.09661,2441.1,2440.6,0.00874132]
[1730852414439,5.0,2441.1,2440.6,0.00874132]
[1730852414658,5.0,2441.1,2440.7,0.01]
[1730852414976,5.0,2441.4,2440.9,4.9346]
[1730852415499,4.09594,2441.5,2441.0,0.00874132]
[1730852415641,5.0,2441.6,2441.3,0.8278]
[1730852415841,4.09612,2441.4,2441.1,0.01]
[1730852416146,4.09651,2441.1,2441.0,0.8278]
[1730852416383,5.0,2440.7,2440.3,0.8278]
[1730852416586,5.0,2440.7,2440.4,0.00874132]
[1730852416893,5.0,2440.7,2440.3,0.8378]
[1730852417045,4.09736,2440.6,2440.4,0.00874132]
[1730852417243,5.0,2440.7,2440.4,0.00874132]
[1730852417948,5.0,2441.0,2440.7,0.00874132]
[1730852419328,5.0,2441.0,2440.8,0.8278]
[1730852419544,5.0,2441.3,2440.8,0.8378]
[1730852420011,9.09619,2441.3,2440.8,0.8378]
[1730852420323,10.793097,2441.3,2440.8,0.8378]
[1730852421027,10.793097,2441.3,2440.8,0.8278]
[1730852421228,10.793097,2441.3,2440.8,0.8378]
[1730852422185,4.09637,2441.2,2440.8,0.8378]
[1730852422866,4.09637,2441.2,2440.8,0.8278]
[1730852423025,4.09637,2441.2,2440.8,0.8378]
[1730852423234,4.09662,2441.1,2440.8,0.8278]
[1730852423528,3.0,2441.3,2440.8,4.9247]
[1730852423729,12.09592,2441.5,2440.8,4.9247]
[1730852423901,1.209592,2441.4,2440.8,0.8278]
[1730852424103,4.09627,2441.3,2440.8,0.8278]
[1730852424299,4.09684,2440.9,2440.5,0.01]
[1730852424502,9.09684,2440.9,2440.5,0.8378]
[1730852424689,4.09713,2440.8,2440.5,0.8278]
[1730852425004,1.319397,2440.7,2440.4,0.01]
[1730852425189,4.09701,2440.8,2440.4,0.01]
[1730852425392,4.09701,2440.8,2440.3,0.00874132]
[1730852425591,5.0,2440.9,2440.3,0.00874132]
[1730852425787,4.09748,2440.6,2440.3,0.00874132]
[1730852426020,4.09701,2440.8,2440.3,0.00874132]
[1730852426236,1.31937,2440.8,2440.3,4.10657132]
[1730852426553,5.0,2440.7,2440.3,0.00874132]
[1730852426732,5.0,2440.1,2439.6,0.8278]
[1730852426935,5.0,2439.8,2439.6,0.8278]
[1730852428047,5.0,2439.8,2439.4,0.01]
[1730852428352,9.09882,2439.8,2439.4,0.01]
[1730852430244,4.09917,2439.6,2439.4,0.01]
[1730852430449,9.09884,2439.8,2439.4,0.01]
[1730852432104,0.05857667,2439.7,2439.4,0.01]
[1730852432317,0.01790906,2439.7,2439.4,0.01]
[1730852432551,5.0,2439.8,2439.4,0.01]
[1730852432748,0.06216678,2439.6,2439.4,0.01]
[1730852432913,5.0,2439.8,2439.4,0.01]
[1730852433263,4.09843,2440.0,2439.7,0.00874132]
[1730852433547,5.7768,2440.3,2439.7,0.00874132]
[1730852433849,9.09783,2440.4,2440.0,0.01]
[1730852434057,4.09766,2440.5,2440.0,0.01]
[1730852434223,0.8268,2440.6,2439.4,3.0]
[1730852434224,5.0,2440.6,2440.4,0.00874132]
[1730852434608,4.09763,2440.5,2440.1,0.82384132]
[1730852435044,4.09769,2440.4,2440.1,0.82384132]
[1730852435244,4.09794,2440.3,2440.1,0.82384132]
[1730852435450,4.09769,2440.4,2440.1,0.82384132]
[1730852436229,0.0201045,2440.3,2440.1,0.82384132]
[1730852436751,4.1180245,2440.3,2440.1,0.00874132]
[1730852436910,0.0201045,2440.3,2440.1,0.00874132]
[1730852437111,4.09759,2440.5,2440.1,0.00874132]
[1730852437354,0.01923872,2440.2,2440.1,0.00874132]
[1730852437551,4.09759,2440.5,2440.1,0.00874132]
[1730852437911,0.02442737,2440.2,2440.1,0.00874132]
[1730852438060,4.09759,2440.5,2440.1,0.00874132]
[1730852438225,0.02099284,2440.4,2440.1,0.00874132]
[1730852438562,0.02099284,2440.4,2440.3,0.00874132]
[1730852438714,5.0,2440.6,2440.3,0.00874132]
[1730852438918,0.02112688,2440.4,2440.3,0.00874132]
[1730852439118,5.0,2440.6,2440.3,0.00874132]
[1730852439318,0.02034252,2440.4,2440.3,0.00874132]
[1730852439556,5.0,2440.6,2440.3,0.00874132]
[1730852439753,0.02040828,2440.4,2440.3,0.00874132]
[1730852439940,5.0,2440.6,2440.3,0.00874132]
[1730852440139,5.0,2440.6,2440.2,0.01]
[1730852440140,0.02040828,2440.4,2440.2,0.01]
[1730852440338,4.09754,2440.5,2440.3,0.00874132]
[1730852440648,3.84742333,2440.5,2440.3,0.00874132]
[1730852441165,4.09771,2440.4,2440.2,0.01]
[1730852441320,3.84742333,2440.5,2440.1,0.00874132]
[1730852441321,4.09785,2440.3,2440.1,0.00874132]
[1730852441529,4.09785,2440.3,2440.0,0.8251]
[1730852441728,4.09802,2440.2,2440.0,0.01]
[1730852441933,8.19582,2440.3,2439.9,0.00874132]
[1730852442153,5.0,2440.3,2440.1,0.00874132]
[1730852443440,0.02219025,2440.2,2440.1,0.00874132]
[1730852443667,0.02219025,2440.2,2440.1,0.82814132]
[1730852443826,4.0977,2440.4,2440.1,0.82814132]
[1730852444028,0.02446479,2440.2,2440.1,0.82814132]
[1730852444228,9.09727,2440.7,2440.1,0.82814132]
[1730852444458,0.01973772,2440.2,2440.1,0.82814132]
[1730852444726,0.01934306,2440.2,2440.1,0.82814132]
[1730852444947,13.19459,2440.7,2440.1,4.92631132]
[1730852445266,0.01940884,2440.2,2440.1,0.82814132]
[1730852445466,5.0,2440.7,2440.3,0.00874132]
[1730852445783,5.0,2440.7,2440.4,0.01]
[1730852445933,4.09691,2440.9,2440.5,0.00874132]
[1730852446284,9.86914,2441.3,2440.8,0.01]
[1730852446575,9.86914,2441.3,2440.9,0.00874132]
[1730852446773,4.1441461,2441.2,2440.9,0.00874132]
[1730852447067,4.16654075,2441.2,2440.9,0.00874132]
[1730852447273,5.69106803,2441.2,2440.9,0.00874132]
[1730852447470,4.09652,2441.1,2440.8,0.01]
[1730852447687,8.19314,2441.1,2440.8,0.01]
[1730852447989,1.59470803,2441.2,2440.4,0.00874132]
[1730852447990,4.0972,2440.7,2440.4,0.00874132]
[1730852448163,5.0,2440.6,2440.2,0.82814132]
[1730852448332,4.09779,2440.4,2440.2,0.82814132]
[1730852448532,13.21641126,2440.6,2440.2,0.83814132]
[1730852448732,0.0207329,2440.3,2440.2,0.83814132]
[1730852448971,9.0974,2440.6,2440.2,0.83814132]
[1730852449173,0.07320271,2440.3,2440.2,0.83814132]
[1730852449377,10.49414,2440.6,2440.2,0.82814132]
[1730852449378,4.09763,2440.5,2440.2,0.82814132]
[1730852449543,0.0524217,2440.3,2440.0,0.8294]
[1730852449743,4.0978,2440.4,2440.0,0.8294]
[1730852449943,0.05209772,2440.2,2440.1,0.00874132]
[1730852450138,8.19559,2440.4,2440.0,0.8194]
[1730852450337,8.19559,2440.4,2439.9,0.00874132]
[1730852450338,0.05209772,2440.2,2439.9,0.00874132]
[1730852450538,4.11867866,2440.3,2439.9,0.00874132]
[1730852451134,4.11867866,2440.3,2440.0,0.01]
[1730852452233,4.11867866,2440.3,2439.8,0.8194]
[1730852452234,4.09803,2440.2,2439.8,0.8294]
[1730852452430,0.91188287,2440.1,2440.0,0.01]
[1730852453181,4.09803,2440.2,2440.0,0.01]
[1730852453682,0.02079866,2440.3,2440.0,0.01874132]
[1730852453977,0.02079866,2440.3,2440.1,0.00874132]
[1730852454186,4.09772,2440.4,2440.1,0.00874132]
[1730852454479,0.07252736,2440.2,2440.1,0.00874132]
[1730852454639,9.09758,2440.5,2440.1,0.00874132]
[1730852454834,0.07242103,2440.2,2440.1,0.00874132]
[1730852455066,4.09771,2440.4,2440.1,0.00874132]
[1730852455265,0.07248902,2440.2,2440.1,0.00874132]
[1730852455473,0.07248902,2440.2,2439.9,0.82814132]
[1730852455474,5.0,2440.2,2439.9,0.82814132]
[1730852455635,9.17036045,2440.2,2439.9,0.00874132]
[1730852456180,6.39903449,2440.2,2439.6,0.01874132]
[1730852456383,4.09865,2439.9,2439.6,0.01874132]
[1730852456540,4.09849,2440.0,2439.6,0.01874132]
[1730852456775,4.0987,2439.8,2439.6,0.01874132]
[1730852456964,4.0987,2439.8,2439.6,0.01]
[1730852457199,4.0987,2439.8,2439.6,0.01874132]
[1730852457704,4.0987,2439.8,2439.6,0.00874132]
[1730852457867,0.01927559,2439.7,2439.6,0.00874132]
[1730852458267,4.0987,2439.8,2439.6,0.00874132]
[1730852458503,0.07200927,2439.7,2439.6,0.00874132]
[1730852458706,0.07200927,2439.7,2439.6,0.01874132]
[1730852458924,0.07200927,2439.7,2439.6,0.00874132]
[1730852460269,0.07200927,2439.7,2439.4,0.01874132]
[1730852460270,4.09903,2439.6,2439.4,0.01874132]
[1730852460512,9.09932,2439.5,2439.1,0.00874132]
[1730852460683,0.07200927,2439.7,2439.4,0.77494132]
[1730852460882,4.17095927,2439.7,2439.4,0.7662]
[1730852461091,0.07200927,2439.7,2439.5,0.00874132]
[1730852461287,0.07200927,2439.7,2439.5,0.01874132]
[1730852461529,0.07200927,2439.7,2439.6,4.09903]
[1730852461812,9.09759,2440.5,2439.9,4.09844]
[1730852462115,5.0,2441.2,2440.6,0.00874132]
[1730852462327,13.95695,2441.3,2440.8,0.00874132]
[1730852462614,4.09713,2440.8,2440.3,0.7662]
[1730852462802,5.0,2440.6,2440.5,0.01]
[1730852463199,5.0,2440.6,2440.3,0.78494132]
[1730852463508,5.0,2440.6,2440.5,0.01]
[1730852463721,5.0,2440.6,2440.3,0.78494132]
[1730852464421,9.09737,2440.6,2440.3,0.00874132]
[1730852464727,5.0,2440.3,2440.0,0.7662]
[1730852464883,5.0,2440.3,2439.8,0.01]
[1730852464884,4.09822,2440.1,2439.7,0.77494132]
[1730852465083,4.09837,2440.0,2439.6,0.01]
[1730852465319,4.10272364,2440.0,2439.5,0.77494132]
[1730852465467,4.09853,2439.9,2439.5,0.77494132]
[1730852465673,9.92281,2440.0,2439.5,0.78494132]
[1730852465905,0.00419108,2439.8,2439.5,0.78494132]
[1730852466086,4.1029907,2439.9,2439.5,0.7762]
[1730852466295,0.0042033,2439.7,2439.5,0.01]
[1730852466486,4.09853,2439.9,2439.5,0.00874132]
[1730852466487,0.7644,2439.9,2439.5,0.00874132]
[1730852466685,0.0044999,2439.6,2439.5,0.00874132]
[1730852466928,5.0,2440.0,2439.5,4.10793132]
[1730852467125,0.7644,2440.1,2439.7,0.00874132]
[1730852467332,5.0,2440.3,2439.7,4.87378132]
[1730852467478,9.09785,2440.3,2439.7,4.87378132]
[1730852467677,9.09785,2440.3,2439.7,0.77494132]
[1730852467678,4.09811,2440.2,2439.7,0.77494132]
[1730852467927,9.09785,2440.3,2439.7,4.87374132]
[1730852468089,14.591815,2440.3,2439.7,4.87374132]
[1730852468389,10.493865,2440.3,2439.7,0.77494132]
[1730852468593,0.00536363,2440.2,2439.7,0.77494132]
[1730852468886,9.09837,2440.0,2439.7,0.00874132]
[1730852469204,0.00455493,2439.9,2439.7,0.01874132]
[1730852469792,0.00455493,2439.9,2439.7,0.00874132]
[1730852470015,0.00455493,2439.9,2439.7,0.01874132]
[1730852472280,9.09794,2440.3,2439.7,0.01874132]
[1730852472481,9.09794,2440.3,2439.7,8.21620132]
[1730852472675,9.09794,2440.3,2440.0,0.00874132]
[1730852472676,0.00602316,2440.2,2440.0,0.00874132]
[1730852472879,4.09861,2439.9,2439.5,0.01]
[1730852473283,4.10657155,2439.8,2439.5,0.01]
[1730852473785,0.00561762,2439.8,2439.7,0.00874132]
[1730852473984,9.85884,2440.2,2439.7,0.00874132]
[1730852474281,0.00475649,2439.8,2439.7,4.10760132]
[1730852474612,4.09778,2440.4,2440.1,0.00874132]
[1730852474780,5.7607,2440.5,2440.1,0.00874132]
[1730852474981,5.0,2440.5,2440.1,4.10692132]
[1730852475599,5.0,2440.5,2440.1,0.00874132]
[1730852475777,0.00860906,2440.4,2440.1,0.00874132]
[1730852475980,0.00860906,2440.4,2440.2,0.00874132]
[1730852476900,0.05931496,2440.3,2440.2,5.35604545]
[1730852477300,0.05931496,2440.3,2440.2,5.90604545]
[1730852477832,0.7607,2441.6,2441.3,0.00874132]
[1730852477982,5.7607,2441.8,2441.5,0.00874132]
[1730852478404,5.0,2441.8,2441.5,0.00874132]
[1730852478596,0.5,2441.7,2441.5,0.00874132]
[1730852478827,4.09567,2441.6,2441.4,0.00874132]
[1730852479133,0.5,2441.7,2441.4,0.00874132]
[1730852479429,0.01113919,2441.6,2441.4,0.00874132]
[1730852479786,9.09534,2441.8,2441.4,0.00874132]
[1730852479985,5.005044,2441.7,2441.4,0.00874132]
[1730852480327,0.909534,2441.7,2441.3,0.00874132]
[1730852480833,4.09579,2441.6,2441.3,0.00874132]
[1730852481029,4.09579,2441.6,2441.1,0.84634132]
[1730852481238,4.09601,2441.4,2440.9,0.84634132]
[1730852481435,4.09601,2441.4,2441.2,0.01874132]
[1730852481436,0.485671,2441.4,2441.2,0.01874132]
[1730852481617,0.485671,2441.4,2441.2,0.01]
[1730852481929,8.677971,2441.4,2440.9,0.83634132]
[1730852482131,8.677971,2441.4,2441.1,0.01]
[1730852482132,4.581821,2441.4,2441.1,0.01]
[1730852482341,9.581821,2441.4,2441.1,0.01]
[1730852482624,0.9581821,2441.3,2441.1,0.01]
[1730852482831,4.09634,2441.2,2440.9,0.83634132]
[1730852482995,0.00867122,2441.2,2441.1,0.01]
[1730852483191,5.0543621,2441.3,2440.9,0.84634132]
[1730852483389,0.00867122,2441.2,2440.9,0.84634132]
[1730852483734,0.00840192,2441.1,2440.7,0.8276]
[1730852483883,0.00840192,2441.1,2440.5,0.01]
[1730852483884,8.19362,2441.0,2440.5,0.01874132]
[1730852484088,4.10476325,2440.9,2440.5,0.01]
[1730852484290,4.09711,2440.8,2440.5,0.01874132]
[1730852484515,0.00786325,2440.9,2440.5,0.01874132]
[1730852484739,0.00786325,2440.9,2440.3,0.00874132]
[1730852484740,4.09752,2440.5,2440.3,0.00874132]
[1730852485035,0.00749933,2440.8,2440.3,0.01874132]
[1730852485217,0.00642162,2440.4,2440.3,0.01874132]
[1730852485417,4.09709,2440.8,2440.3,0.01874132]
[1730852485618,0.00642162,2440.4,2440.3,4.11658132]
[1730852485825,5.49312333,2440.9,2440.3,0.01874132]
[1730852486004,0.0058567,2440.4,2440.3,0.01874132]
[1730852486209,4.09754,2440.5,2440.2,0.00874132]
[1730852486427,4.1037067,2440.4,2440.1,0.01]
[1730852486741,4.09795,2440.3,2440.1,0.01]
[1730852486910,4.09842,2440.0,2439.8,0.8376]
[1730852487117,0.409842,2440.0,2439.9,0.00874132]
[1730852487407,9.09795,2440.3,2439.9,0.00874132]
[1730852487617,4.09795,2440.3,2439.9,0.01874132]
[1730852487825,4.0976,2440.5,2439.9,4.11716132]
[1730852488032,4.0976,2440.5,2440.0,0.7699]
[1730852488410,5.0,2440.4,2440.0,0.7699]
[1730852488621,5.98583,2440.4,2440.0,0.7699]
[1730852488834,10.08354,2440.4,2440.0,0.7699]
[1730852490210,0.00619901,2440.3,2440.2,0.00874132]
[1730852490409,9.09758,2440.5,2440.2,0.01874132]
[1730852490627,0.00619901,2440.3,2440.2,0.01874132]
[1730852490821,9.09754,2440.5,2440.2,0.01874132]
[1730852491026,0.00646082,2440.3,2440.2,0.01874132]
[1730852491237,9.09754,2440.5,2440.2,0.01874132]
[1730852491238,4.09779,2440.4,2440.2,0.01874132]
[1730852491436,5.01408982,2440.3,2440.1,0.01]
[1730852491845,0.05728805,2440.2,2440.1,0.01]
[1730852492228,0.00646082,2440.3,2440.1,0.01]
[1730852492417,0.06347938,2440.2,2440.1,0.01]
[1730852493448,0.06347938,2440.2,2440.1,5.43683132]
[1730852493745,0.06347938,2440.2,2440.1,6.76202589]
[1730852493946,0.0671922,2440.2,2440.1,6.76202589]
[1730852494103,9.09708,2440.8,2440.5,0.00874132]
[1730852494331,5.0,2440.8,2440.5,0.00874132]
[1730852494528,0.7906,2441.0,2440.5,4.11624132]
[1730852494828,9.09661,2441.1,2440.6,0.7699]
[1730852495027,4.0964,2441.2,2440.8,0.00874132]
[1730852495236,5.0,2441.4,2441.0,0.00874132]
[1730852495856,5.0,2441.4,2441.0,0.01874132]
[1730852496126,9.09603,2441.4,2441.0,0.01874132]
[1730852496333,4.09653,2441.1,2440.8,0.01]
[1730852497142,4.09619,2441.3,2441.0,0.00874132]
[1730852497341,10.415298,2441.4,2441.2,0.00874132]
[1730852497574,4.09622,2441.3,2441.0,0.01]
[1730852498368,9.09594,2441.5,2441.1,0.77864132]
[1730852498878,5.0,2441.5,2440.8,0.7799]
[1730852499047,5.0,2441.5,2440.6,4.11599132]
[1730852499048,4.09633,2441.3,2440.6,4.11599132]
[1730852499244,4.09653,2441.1,2440.6,0.01874132]
[1730852499482,4.09698,2440.9,2440.6,0.01]
[1730852499634,8.19394,2440.9,2440.6,0.01]
[1730852499836,0.05299087,2440.8,2440.6,0.01]
[1730852500354,0.05299087,2440.8,2440.6,0.01874132]
[1730852500560,4.09669,2441.0,2440.6,0.01874132]
[1730852500878,0.05293172,2440.7,2440.6,0.01]
[1730852501034,4.09688,2440.9,2440.6,0.01874132]
[1730852501231,0.7906,2440.6,2440.3,0.00874132]
[1730852501550,0.05322487,2440.5,2440.3,0.00874132]
[1730852501952,4.15085487,2440.5,2440.3,0.00874132]
[1730852502267,4.15085487,2440.5,2440.0,0.01]
[1730852502268,4.09787,2440.3,2440.0,0.00874132]
[1730852502583,4.77445783,2440.4,2440.2,0.00874132]
[1730852502783,0.67677783,2440.4,2440.3,0.00874132]
[1730852502979,4.09768,2440.4,2440.3,0.00874132]
[1730852503153,8.1955,2440.4,2440.0,0.00874132]
[1730852503354,4.09768,2440.4,2440.2,0.00874132]
[1730852503658,9.09768,2440.4,2440.0,0.00874132]
[1730852503964,4.09819,2440.1,2440.0,0.00874132]
[1730852504485,4.917827,2440.1,2440.0,0.00874132]
[1730852504992,4.09869,2439.8,2439.7,0.00874132]
[1730852505353,4.09869,2439.8,2439.6,0.01874132]
[1730852505594,4.09886,2439.7,2439.6,0.01874132]
[1730852506882,4.15504651,2439.7,2439.6,0.01]
[1730852507045,4.98042016,2439.7,2439.6,0.01]
[1730852509473,0.05618651,2439.7,2439.6,0.00874132]
[1730852509668,0.05618651,2439.7,2439.6,0.77564132]
[1730852509850,4.09846,2440.0,2439.6,0.77564132]
[1730852510052,0.0550853,2439.7,2439.6,0.77564132]
[1730852510284,9.09846,2440.0,2439.6,0.77564132]
[1730852510483,0.05245448,2439.7,2439.6,0.77564132]
[1730852510669,4.09846,2440.0,2439.6,0.77564132]
[1730852510883,4.09813,2440.2,2439.9,0.00874132]
[1730852511185,4.09777,2440.4,2440.1,0.01874132]
[1730852512246,4.09745,2440.6,2440.1,0.01874132]
[1730852512447,4.09745,2440.6,2440.3,0.01]
[1730852512646,4.09745,2440.6,2440.3,0.01874132]
[1730852513058,9.09688,2440.9,2440.6,0.00874132]
[1730852513206,4.09703,2440.8,2440.6,0.00874132]
[1730852513505,10.556115,2440.9,2440.6,0.00874132]
[1730852513704,4.09702,2440.8,2440.6,0.00874132]
[1730852514006,4.09717,2440.8,2440.5,0.01]
[1730852514210,4.09717,2440.8,2440.7,0.00874132]
[1730852514673,4.09675,2441.0,2440.7,0.00874132]
[1730852514674,4.09686,2440.9,2440.7,0.00874132]
[1730852515192,4.09675,2441.0,2440.7,0.00874132]
[1730852515501,8.19353,2441.0,2440.7,0.00874132]
[1730852515691,4.09675,2441.0,2440.7,0.00874132]
[1730852515891,5.7629,2441.3,2441.0,0.00874132]
[1730852515892,5.0,2441.3,2441.0,0.00874132]
[1730852516087,4.09586,2441.5,2441.2,0.00874132]
[1730852516679,4.09602,2441.4,2441.2,0.00874132]
[1730852516888,4.915196,2441.4,2441.2,0.00874132]
[1730852517318,0.03964357,2441.3,2441.2,0.00874132]
[1730852517911,0.05150856,2441.3,2441.2,0.00874132]
[1730852518122,0.05150856,2441.3,2441.0,0.01874132]
[1730852518281,8.24398856,2441.3,2441.1,0.00874132]
[1730852518480,8.24398856,2441.3,2441.0,0.01]
[1730852518481,4.09636,2441.2,2441.0,0.01]
[1730852518677,4.14768856,2441.3,2441.1,0.00874132]
[1730852518922,0.03964357,2441.3,2441.1,0.00874132]
[1730852519090,0.03964357,2441.3,2441.2,0.8308]
[1730852519429,5.0,2441.9,2441.3,0.00874132]
[1730852519718,4.09593,2441.5,2441.2,0.8208]
[1730852519878,9.09593,2441.5,2441.3,0.01874132]
[1730852520801,4.09667,2441.1,2440.8,0.00874132]
[1730852521126,5.7534,2441.5,2441.2,0.00874132]
[1730852521127,5.005613,2441.4,2441.2,0.00874132]
[1730852521418,0.00931184,2441.3,2441.2,0.00874132]
[1730852521921,0.04777746,2441.3,2441.2,0.00874132]
[1730852523608,4.14396746,2441.3,2441.0,0.00874132]
[1730852523924,4.09701,2440.8,2440.7,0.01874132]
[1730852524080,4.09677,2441.0,2440.7,0.01874132]
[1730852524286,0.03907152,2440.8,2440.7,0.01874132]
[1730852524490,4.09699,2440.9,2440.7,0.01874132]
[1730852524691,0.04742038,2440.8,2440.7,0.01874132]
[1730852526620,0.04742038,2440.8,2440.7,5.48672132]
[1730852526806,9.09543,2441.8,2441.5,0.00874132]
[1730852527010,9.09543,2441.8,2441.7,0.00874132]
[1730852527011,5.0,2441.8,2441.7,0.00874132]
[1730852527909,4.09494,2442.1,2441.7,0.00874132]
[1730852528296,4.09503,2442.0,2441.7,0.00874132]
[1730852528833,4.09487,2442.1,2441.7,0.00874132]
[1730852529142,5.0,2442.5,2442.3,0.00874132]
[1730852529445,9.09428,2442.5,2442.3,0.00874132]
[1730852529606,5.0,2442.5,2442.3,0.00874132]
[1730852531038,4.094,2442.6,2442.3,0.00874132]
[1730852531335,4.09426,2442.5,2442.3,0.00874132]
[1730852531628,4.09433,2442.4,2442.3,0.00874132]
[1730852531856,4.094,2442.6,2442.3,0.00874132]
[1730852532033,4.09426,2442.5,2442.3,0.00874132]
[1730852532409,5.488113,2442.6,2442.3,0.00874132]
[1730852532654,0.01099227,2442.4,2442.3,0.00874132]
[1730852532811,5.0,2442.7,2442.3,0.00874132]
[1730852533013,9.1539852,2443.0,2442.5,0.01874132]
[1730852533250,10.14472372,2443.0,2442.5,0.01874132]
[1730852533412,4.09349,2442.9,2442.5,0.01874132]
[1730852533609,6.05133372,2443.0,2442.5,0.00874132]
[1730852533942,5.0,2442.7,2442.5,0.01874132]
[1730852534248,0.0605952,2443.0,2442.7,0.00874132]
[1730852534613,4.09361,2442.9,2442.7,0.00874132]
[1730852534810,4.1540452,2443.0,2442.7,0.00874132]
[1730852535668,4.09386,2442.7,2442.5,0.01874132]
[1730852535828,4.09386,2442.7,2442.3,0.01874132]
[1730852536218,0.0120475,2442.6,2442.1,0.82954132]
[1730852536547,4.09416,2442.5,2442.4,0.01]
[1730852536857,4.09494,2442.1,2441.9,0.00874132]
[1730852537226,5.0,2442.4,2442.1,0.01874132]
[1730852537427,9.0939,2442.7,2442.3,0.00874132]
[1730852537633,4.09433,2442.4,2442.2,0.00874132]
[1730852537847,4.09427,2442.5,2442.2,0.00874132]
[1730852538078,0.7534,2442.9,2442.4,0.82954132]
[1730852538079,4.84699,2442.9,2442.4,0.82954132]
[1730852538246,8.0605952,2443.0,2442.7,0.00874132]
[1730852538247,0.0605952,2443.0,2442.7,0.00874132]
[1730852538451,4.1539552,2443.0,2442.7,0.00874132]
[1730852538637,0.0605952,2443.0,2442.8,0.01]
[1730852538833,0.0605952,2443.0,2442.9,0.00874132]
[1730852539163,0.0605952,2443.0,2442.9,0.01874132]
[1730852539777,0.0605952,2443.0,2442.9,0.83954132]
[1730852539974,0.07366612,2443.0,2442.9,5.48303132]
[1730852540130,9.09174,2444.0,2443.6,0.00874132]
[1730852540131,4.09218,2443.7,2443.6,0.00874132]
[1730852540334,4.09218,2443.7,2443.3,0.01874132]
[1730852540335,5.0,2443.7,2443.3,0.01874132]
[1730852540563,4.0926,2443.5,2443.3,0.01874132]
[1730852540831,4.0926,2443.5,2443.0,0.8208]
[1730852540832,4.09299,2443.2,2443.0,0.8208]
[1730852541024,4.09299,2443.2,2442.9,0.01874132]
[1730852541260,4.09316,2443.1,2442.9,0.00874132]
[1730852541466,4.09316,2443.1,2443.0,0.01]
[1730852541776,4.09316,2443.1,2442.9,0.00874132]
[1730852542125,0.909299,2443.2,2442.9,0.00874132]
[1730852542325,4.09319,2443.1,2442.9,0.00874132]
[1730852542572,4.5934389,2443.1,2442.9,0.00874132]
[1730852542873,8.18646,2443.1,2442.9,0.00874132]
[1730852543177,0.909299,2443.2,2442.6,0.01]
[1730852543178,4.09349,2442.9,2442.6,0.01]
[1730852543356,9.84546,2443.8,2443.3,0.00874132]
[1730852543560,8.18485,2443.6,2443.3,0.01874132]
[1730852543762,4.09216,2443.7,2443.3,0.01874132]
[1730852544062,4.09249,2443.5,2443.3,0.01874132]
[1730852544481,4.09249,2443.5,2443.3,0.01]
[1730852544678,4.09265,2443.4,2443.3,0.01]
[1730852544881,4.09265,2443.4,2443.3,0.01874132]
[1730852545063,4.09245,2443.6,2443.3,0.01874132]
[1730852545274,4.76581911,2443.6,2443.3,0.01874132]
[1730852545581,0.67336911,2443.6,2443.3,0.01874132]
[1730852546285,9.09215,2443.7,2443.3,0.01874132]
[1730852546286,5.0,2443.7,2443.5,0.00874132]
[1730852546438,8.93687,2444.0,2443.7,0.00874132]
[1730852546638,8.93687,2444.0,2443.4,0.00874132]
[1730852546639,4.09246,2443.6,2443.4,0.00874132]
[1730852546862,8.18488,2443.6,2443.4,0.00874132]
[1730852547142,4.09265,2443.4,2443.1,0.01]
[1730852547338,4.50342671,2443.3,2443.0,0.8208]
[1730852547567,4.51540011,2443.3,2443.1,0.01874132]
[1730852547796,4.09299,2443.2,2443.1,0.01]
[1730852548143,4.09299,2443.2,2442.8,0.00874132]
[1730852548144,4.09327,2443.1,2442.8,0.00874132]
[1730852548352,4.09344,2443.0,2442.8,0.00874132]
[1730852548689,0.01018058,2443.0,2442.9,0.01]
[1730852549183,8.59636671,2443.3,2443.0,0.00874132]
[1730852549386,1.43497667,2443.3,2443.0,0.00874132]
[1730852549539,5.8294,2444.5,2443.8,0.00874132]
[1730852549737,4.09178,2444.0,2443.7,0.00874132]
[1730852550036,4.92136,2443.9,2443.5,0.01]
[1730852550250,4.92132,2443.9,2443.6,0.00874132]
[1730852550537,5.0,2443.5,2443.3,0.01]
[1730852551748,9.09249,2443.5,2443.3,0.01]
[1730852552084,8.18557,2443.4,2443.2,0.01874132]
[1730852552243,4.09276,2443.4,2443.3,0.01]
[1730852552439,1.318516,2443.4,2443.3,0.01]
[1730852552645,4.0924,2443.6,2443.4,0.00874132]
[1730852553375,9.584182,2443.8,2443.4,0.00874132]
[1730852553581,4.09216,2443.7,2443.4,0.00874132]
[1730852554083,9.584182,2443.8,2443.4,0.00874132]
[1730852554084,4.09243,2443.6,2443.4,0.00874132]
[1730852554388,0.409243,2443.5,2443.4,0.00874132]
[1730852554962,9.09308,2443.2,2443.1,0.01]
[1730852555371,9.09243,2443.6,2443.1,0.01874132]
[1730852555711,9.09243,2443.6,2443.3,0.00874132]
[1730852555865,9.09241,2443.6,2443.3,0.00874132]
[1730852556599,4.0928,2443.4,2443.2,0.01]
[1730852556802,0.818529,2443.3,2443.2,0.01]
[1730852557101,4.911349,2443.3,2443.2,0.01874132]
[1730852557304,0.818529,2443.3,2443.2,0.00874132]
[1730852557609,0.818529,2443.3,2443.2,0.01874132]
[1730852557906,5.0,2443.6,2443.4,0.00874132]
[1730852558089,9.09234,2443.6,2443.4,0.00874132]
[1730852558293,4.09253,2443.5,2443.3,0.00874132]
[1730852558667,9.09241,2443.6,2443.3,0.00874132]
[1730852558868,9.09241,2443.6,2443.0,4.09322]